Cogmind - Beta 16.1 @@@ ROGUE MODE // 2026.03.26 @ 21:52:12 Player: Windjigo Result: Destroyed by 04-TXS(R) with Subdweller Beam Cannon Performance ------------- Evolutions (0) 0 Regions Visited (2) 400 Robots Destroyed (13) 65 Value Destroyed (216) 216 Prototype IDs (0) 0 Alien Tech Used (0) 0 Bonus (0) 0 TOTAL SCORE: 681 Bonus ------- None Cogmind --------- Core Integrity 0/250 Matter 300/300 Energy 124/125 System Corruption 0% Temperature Cool (9) Movement Rolling (115) Ox1 Location -10/Subcaves Parts ------- > --- POWER (1) -------- Light Ion Engine > --- PROPULSION (2) --- Compact Wheel > --- UTILITY (2) ------ Small Storage Unit > --- WEAPON (2) ------- Subdweller Beam Cannon Makeshift Shrapnel Gun > --- INVENTORY (8) ---- Subdweller Power Source Small Laser Assault Rifle Battle Cannon Battle Cannon Battle Cannon Ripper Peak State ------------ > --- POWER ------------ Light Ion Engine > --- PROPULSION ------- Wheel Compact Wheel > --- UTILITY ---------- Heat Sink Small Storage Unit > --- WEAPON ----------- Subdweller Beam Cannon Makeshift Shrapnel Gun > --- INVENTORY -------- Subdweller Power Source Small Laser Assault Rifle Battle Cannon Battle Cannon Battle Cannon [Rating: 12] Favorites ----------- Power Ion Engine Engine Ion Engine Propulsion Aluminum Leg Leg Aluminum Leg Wheel Wheel Utility Small Storage Unit Device Improved Terrain Scanner Storage Small Storage Unit Protection Light Armor Plating Weapon Assault Rifle Energy Gun Medium Laser Energy Cannon Subdweller Beam Cannon Ballistic Gun Assault Rifle Impact Weapon Hammer Build | -11 -10 -10 ------- Run | Yrd Mat Sub Slots Evolved . | . . . Power . | . . . Propulsion . | . . . Utility . | . . . Weapon . | . . . Parts Attached 17 | 9 1 7 Power 2 | 2 . . Engine 2 | 2 . . Core . | . . . Reactor . | . . . Propulsion 5 | 2 . 3 Treads . | . . . Leg 2 | 2 . . Wheel 3 | . . 3 Hover . | . . . Flight . | . . . Utility 4 | 2 1 1 Device 2 | 1 . 1 Storage 1 | 1 . . Processor . | . . . Hackware . | . . . Protection 1 | . 1 . Artifact . | . . . Weapon 6 | 3 . 3 Energy Gun 2 | 2 . . Energy Cannon 1 | . . 1 Ballistic Gun 2 | 1 . 1 Ballistic Cannon . | . . . Launcher . | . . . Special Weapon . | . . . Impact Weapon 1 | . . 1 Slashing Weapon . | . . . Piercing Weapon . | . . . Special Melee Weapon . | . . . Unidentified Prototypes . | . . . Parts Lost 10 | . . 10 Power 1 | . . 1 Propulsion 4 | . . 4 Utility 3 | . . 3 Weapon 2 | . . 2 Highest Loss Streak 8 | . . 8 To Critical Strikes . | . . . Average Backups 5 | 4 6 4 Power . | . 1 . Propulsion 1 | 1 2 . Utility . | . 1 . Weapon 2 | 1 2 2 Tool/Special . | . . . Unused Backups 6 | . 1 5 Power 1 | . . 1 Propulsion . | . . . Utility . | . . . Weapon 5 | . 1 4 Tool/Special . | . . . Average Slot Usage (%) 97 | . 100 94 Engine 13 | . 14 12 Leg 15 | . 28 6 Wheel 11 | . . 20 Device 12 | . 13 12 Storage 14 | . 14 14 Energy Gun 9 | . 14 5 Energy Cannon 4 | . . 8 Ballistic Gun 13 | . 14 12 Peak Build Rating 12 | 9 9 12 Average Rating 8 | 5 8 9 On Entrance 6 | . 9 9 Avg Prop Armor Cover (%) . | . . . Naked Turns . | . . . Heaviest Build 19 | 15 17 19 Greatest Support 26 | 20 20 26 Greatest Overweight (x) 2 | 1 . 2 Average Overweight (x) . | . . . Largest Inventory Capacity 8 | 8 8 8 Average Capacity 7 | 7 8 8 Most Carried 8 | 6 8 8 Average Carried 5 | 4 6 4 Final Capacity 8 | 8 8 8 Final Carried 8 | 5 8 7 Class Distribution -------------------- 100% | Mutant Dominant Class ---------------- Mutant | -10/Materials Mutant | -10/Subcaves Resources | -11 -10 -10 ----------- Run | Yrd Mat Sub Matter Collected 506 | 314 71 121 Remotely . | . . . Salvage Created 441 | 140 227 74 Parts 30 | 14 14 2 Haulers Intercepted 2 | . 2 . Recyclers Shooed 2 | 2 . . Parts Field Recycled . | . . . Retrieved Matter . | . . . Parts Self-Destructed . | . . . Prevented . | . . . Parts Restored . | . . . Kills | -11 -10 -10 ------- Run | Yrd Mat Sub Combat Hostiles Destroyed 4 | . 2 2 Melee 1 | . . 1 Guns 3 | . 2 1 Classes Destroyed 7 | 2 4 1 Worker 1 | . 1 . Tunneler 4 | 4 . . Hauler 2 | . 2 . Recycler 1 | 1 . . Watcher 1 | . 1 . Grunt 2 | . 2 . Subdweller 2 | . . 2 Best Kill Streak 5 | 5 2 2 Combat Bots Only 2 | . 2 2 Max Kills in Single Turn 2 | 1 2 1 Gunslinging . | . . . Exploded . | . . . Melee 1 | . . 1 Uniques/NPCs Destroyed . | . . . Combat | -11 -10 -10 -------- Run | Yrd Mat Sub Hostile Shots Fired 62 | . 6 56 Missed 13 | . . 13 Hits 49 | . 6 43 Projectile 49 | . 6 43 Damage Taken 1175 | . 95 1080 Core 259 | . 31 228 Absorbed by Shields . | . . . Core Remaining (%) 100 | 100 . . Volleys Fired 38 | 8 17 13 Largest 2 | 2 2 2 Hottest 104 | 70 70 104 Shots Fired 68 | 16 33 19 Gun 59 | 16 33 10 Cannon 9 | . . 9 Launcher . | . . . Special . | . . . Kinetic 31 | 8 17 6 Thermal 37 | 8 16 13 Explosive . | . . . Electromagnetic . | . . . Robot Hit Streak 9 | 4 9 4 Robot Miss Streak 4 | 1 4 1 Penetration Max . | . . . Secondary Targets . | . . . Shots Hit Robots 45 | 9 19 17 Core Hits 22 | 6 11 5 Critical Kills . | . . . Critical Parts Destroyed . | . . . Critical Strikes 2 | . 1 1 Burn 1 | . 1 . Smash 1 | . . 1 Melee Attacks 14 | . . 14 Impact 14 | . . 14 Slashing . | . . . Piercing . | . . . Sneak Attacks . | . . . Combat Hostiles . | . . . Follow-up Attacks . | . . . Damage Inflicted 668 | 112 263 293 Guns 445 | 112 263 70 Cannons . | . . . Explosions . | . . . Melee 223 | . . 223 Ramming . | . . . Kinetic 226 | 38 139 49 Thermal 219 | 74 124 21 Explosive . | . . . Electromagnetic . | . . . Impact 223 | . . 223 Slashing . | . . . Piercing . | . . . Highest Corruption . | . . . Average Corruption . | . . . Corruption Purged . | . . . Corruption Blocked . | . . . Overload Shots . | . . . Overflow Damage . | . . . Projectiles . | . . . Explosions . | . . . Melee . | . . . Knockbacks 2 | . . 2 Impact 2 | . . 2 Kinetic . | . . . Secondary . | . . . Self-Inflicted Damage . | . . . Shots . | . . . Rammed . | . . . Targets Rammed . | . . . Kicked . | . . . Crushed . | . . . Highest Temperature 162 | 27 162 . Average Temperature 34 | 13 43 . Received Heat Transfer 402 | . 54 348 Siege Activations . | . . . Martial Activations . | . . . Shielding Activations . | . . . Robots Disrupted . | . . . Combat Hostiles . | . . . Robots Corrupted . | . . . Combat Hostiles . | . . . Parts Fried . | . . . Impact Corruptions 1 | . . 1 Robots Melted . | . . . Combat Hostiles . | . . . Parts Melted 4 | 2 2 . Heat Transferred 716 | 222 444 50 Parts Sabotaged . | . . . Parts Stolen . | . . . Parts Stripped . | . . . Power Chain Reactions . | . . . Alert | -11 -10 -10 ------- Run | Yrd Mat Sub Maximum Alert Level . | . . . Low Security (%) 100 | 100 100 . Level 1 . | . . . Level 2 . | . . . Level 3 . | . . . Level 4 . | . . . Level 5 . | . . . High Security . | . . . Max Security . | . . . Peak Influence 40 | 10 40 . Initial . | . . . Average 6 | 2 8 . Influence Increases 101 | 25 76 . Destroy 0b10 Robot/C 40 | . 40 . Destroy 0b10 Robot/NC 45 | 25 20 . Destroy Leader 16 | . 16 . Influence Decreases 101 | 25 70 6 Entered New Map 4 | . . 4 Time Decay 97 | 25 70 2 Squads Dispatched . | . . . Investigation . | . . . Extermination . | . . . Reinforcement . | . . . Assault . | . . . Garrison . | . . . Intercept . | . . . Searches Triggered . | . . . Construction Impeded . | . . . Haulers Reinforced . | . . . Active Scanning Responses . | . . . Cargo Convoy Interrupts . | . . . Stealth | -11 -10 -10 --------- Run | Yrd Mat Sub Distress Signals . | . . . Communications Jammed . | . . . Distress Signals . | . . . Times Spotted 11 | . 4 7 Peak Tracking Total 2 | . 2 2 Tactical Retreats 1 | . . 1 Traps | -11 -10 -10 ------- Run | Yrd Mat Sub Traps Triggered . | . . . Indirectly . | . . . Trap Hack Attempts . | . . . Triggered . | . . . Disarmed . | . . . Reprogrammed . | . . . Reused . | . . . Traps Extracted . | . . . Installed . | . . . Triggered . | . . . Machines | -11 -10 -10 ---------- Run | Yrd Mat Sub Machines Disabled . | . . . Max in Single Turn . | . . . Machines Repaired . | . . . Machines Dismantled . | . . . Machines Sabotaged . | . . . Overloaded Fab Kills . | . . . Hacking | -11 -10 -10 --------- Run | Yrd Mat Sub Machines Accessed 1 | . 1 . Terminals 1 | . 1 . Fabricators . | . . . Repair Stations . | . . . Recycling Units . | . . . Scanalyzers . | . . . Garrison Access . | . . . Total Hacks 2 | . 2 . Successful . | . . . Failed 2 | . 2 . Catastrophic . | . . . Database Lockouts . | . . . Manual 2 | . 2 . Terminals 2 | . 2 . Fabricators . | . . . Repair Stations . | . . . Recycling Units . | . . . Scanalyzers . | . . . Garrison Access . | . . . Terminal Hacks . | . . . Fabricator Hacks . | . . . Repair Station Hacks . | . . . Recycling Unit Hacks . | . . . Scanalyzer . | . . . Garrison Access Hacks . | . . . Unauthorized Hacks . | . . . Terminals . | . . . Fabricators . | . . . Repair Stations . | . . . Recycling Units . | . . . Scanalyzers . | . . . Garrison Access . | . . . Data Cores Recovered . | . . . Used . | . . . Hacking Detections 1 | . 1 . Full Trace Events . | . . . Feedback Events . | . . . Feedback Blocked . | . . . Robot Schematics Acquired . | . . . Robots Built . | . . . Authchips . | . . . Time . | . . . Total Robot Build Rating . | . . . Part Schematics Acquired . | . . . Parts Built . | . . . Authchips . | . . . Time . | . . . Total Part Build Rating . | . . . Part Studies Acquired . | . . . Parts Repaired . | . . . Time . | . . . Parts Recycled . | . . . Recycled Matter . | . . . Retrieved Matter . | . . . Retrieved Components . | . . . Parts Scanalyzed . | . . . Part Schematics Acquired . | . . . Parts Damaged . | . . . Bothacking | -11 -10 -10 ------------ Run | Yrd Mat Sub Used RIF Installer . | . . . Robots Hacked . | . . . Non-combat . | . . . Combat . | . . . Robot Hacks Applied . | . . . Relay Couplers Released . | . . . Fabnet Peak Effective % . | . . . Robots Rewired . | . . . Allies Hacked . | . . . Hacks Repelled . | . . . Allies | -11 -10 -10 -------- Run | Yrd Mat Sub Total Allies . | . . . Largest Group . | . . . Highest-Rated Group . | . . . Highest-Rated Ally . | . . . Total Orders . | . . . Ally Attacks . | . . . Total Damage . | . . . Kills . | . . . Allies Corrupted . | . . . Allies Melted . | . . . Intel | -11 -10 -10 ------- Run | Yrd Mat Sub Active Infowar (turns) 349 | 15 271 63 Terrain 349 | 15 271 63 Robot Analysis Total . | . . . Derelict Logs Recovered 1 | . . 1 Drone Launches . | . . . Drone Recoveries . | . . . Exploration | -11 -10 -10 ------------- Run | Yrd Mat Sub Turns Passed 828 | 114 296 418 Spaces Moved 589 | 59 187 343 Core 22 | 20 . 2 Treads . | . . . Legs 267 | 39 187 41 Wheels 300 | . . 300 Hover . | . . . Flight . | . . . Fastest Speed 50 | 50 120 80 Average Speed 102 | 99 120 94 Slowest Speed 150 | 120 120 150 Overloaded Moves . | . . . Propulsion Burnouts . | . . . Robots Hopped . | . . . Potential Cave-ins . | . . . Cave-ins Triggered . | . . . Exploration Rate (%) 22 | 4 40 23 Regions Visited 2 Branch Regions 1 Pre-discovered Areas . | . . . Known Exits Taken . | . . . Unknown Exits Taken 2 | 1 1 . Scrap Searched 2 | . . 2 Spaces Dug . | . . . Terrain Destroyed 1 | . . 1 Melee . | . . . Projectile 1 | . . 1 AOE . | . . . Terrain Rammed . | . . . Walls Destroyed . | . . . Machines Disabled . | . . . Actions | -11 -10 -10 --------- Run | Yrd Mat Sub Total 714 | 96 225 393 Wait 31 | 11 15 5 Move 587 | 58 186 343 Hop . | . . . Pick Up 21 | 10 4 7 Fast Attach 2 | 2 . . Attach 13 | 5 . 8 Detach . | . . . Swap 7 | 2 2 3 Drop 1 | . 1 . Fire 38 | 8 17 13 Melee 14 | . . 14 Ram . | . . . Kick . | . . . Crush . | . . . Escape Stasis . | . . . Rewire . | . . . Trap . | . . . Miscellaneous . | . . . Route ------- -11/Scrapyard -10/Materials (discovered 2 exits: [*Min] / [*Sub]) -10/Subcaves (discovered 1 exit: [*Mat]) History --------- Turn | Location | Event 7 | -11/Scrapyard | Discovered new exit (range 14) 115 | -11/Scrapyard | Entered Materials 267 | -10/Materials | Discovered new exit (range 6) 305 | -10/Materials | Build established: Mutant 327 | -10/Materials | Discovered new exit (range 8) 411 | -10/Materials | Entered Subcaves 509 | -10/Subcaves | Core integrity fell below 50% 539 | -10/Subcaves | Lost 8 parts (1p3n2u2w) 567 | -10/Subcaves | Shifting Twisted Machinery released Sub. Beam Cannon 570 | -10/Subcaves | Shifting Twisted Machinery released Sub. Power Source 575 | -10/Subcaves | Discovered new exit (range 16) 602 | -10/Subcaves | Learned Materials machine intel 618 | -10/Subcaves | Shifting Twisted Machinery released Battle Cannon 623 | -10/Subcaves | Shifting Twisted Machinery released Mak. Shrapnel Gun 781 | -10/Subcaves | Disturbed a concealed Subdweller 824 | -10/Subcaves | Core integrity fell below 20% 829 | -10/Subcaves | Destroyed by 04-TXS(R) with Subdweller Beam Cannon Last Messages --------------- 00619_ Acquired Sub. Power Source. 00622_ Acquired Battle Cannon. Mak. Shrapnel Gun falls loose from the Twisted Machinery. 00627_ Acquired Mak. Shrapnel Gun. 00765_ Searching scrap... 00765_ Found Battle Cannon. 00765_ Found 67 Matter. 00766_ Acquired 30 matter. 00767_ Acquired Battle Cannon. 00769_ Searching scrap... 00769_ Found Ripper. 00769_ Found Battle Cannon. 00769_ Found 30 Matter. 00771_ Acquired Battle Cannon. 00773_ Acquired Ripper. 00781_ OA-16D(R) angrily emerges from the Twisted Machinery. 00824_ Wheel destroyed. 00826_ Heat Sink destroyed. Map ----- +----------------------------------------------------+ | ?????????????????????????????????????????????????? | | ?????????????????????????????????????????????????? | | ?????????????????????????????????????????????????? | | ?????????????????????????????????????????????????? | | ?????????????????????????????????????????????????? | | ?????????????????????????????????????????????????? | | ?????????????????????????????????????????????????? | | ?????????????????????????????????????????????????? | | ?????????????????????????????????????????????????? | | ?????????????????????????????????????????????????? | | ?????????????????????????????????????????????????? | | ####?????????????????###???????????#######???????? | | ##???????????????## #??#####????# ####????? | | ##????????????### ##?# ####### ##???? | | #????###?????# ### ## ## ##### | | ###?## #??????# ""## # | | ### #??????# < ## | | #??????# # ### | | #??????## ######## #### ## ## | | ##??????# #?????## #??# "###### | | ##?????## #?????# ##??# "##???? | | ##?????# #?????## #####"""##??? | | ## ####?## ##????# ## """"#### | | ?## ### ##???## "# " """"""# | | ??## ### #???# """"" | | ???#### ##?## @ #???## "# ""## """" | | ??????## ##???# ##????####""### "#" | | ??????## #????# #####?????# ##" #?? | | ??????# #######R #?# ####??## ## "" #?? | | #????# ## R #?# ##??##### "##?? | | ##????## ### ##??### #??? | | #??????## ## ####" ## | | ????????# #" "" | | ????????# ### ### " "" | | ???????# ##?# #?# "" ###"#### | | ???????# ##??###############?# ####?###??? | | ???????## #####???????????????????######?????????? | | ????????##???????????????????????????????????????? | | ?????????????????????????????????????????????????? | | ?????????????????????????????????????????????????? | | ?????????????????????????????????????????????????? | | ?????????????????????????????????????????????????? | | ?????????????????????????????????????????????????? | | ?????????????????????????????????????????????????? | | ?????????????????????????????????????????????????? | | ?????????????????????????????????????????????????? | | ?????????????????????????????????????????????????? | | ?????????????????????????????????????????????????? | | ?????????????????????????????????????????????????? | | ?????????????????????????????????????????????????? | +----------------------------------------------------+ Best States ------------- Heat Dissipation 35 Energy Generation 10 Energy Capacity 250 Matter Stores 300 Matter Capacity 300 Sight Range 16 Terrain Scan Range 16 Terrain Scan Density 10 Armor Coverage 150 Evasion (%) 55 Item Schematics ----------------- None Robot Schematics ------------------ None Fabricated ------------ Nothing Repaired ---------- Nothing Studied --------- None Alien Tech Used ----------------- None Achievements -------------- None Challenges ------------ None Game ------ Seed IntegratedSuperquantumClaw Manual? 0 Play Time 00:09:26 Cumulative 112.1 hours Start 2026.03.26 @ 21:44:51 End 2026.03.26 @ 21:52:12 Sessions 1 Manual Loads 0 Difficulty Rogue Special Mode None Game No. 91 Rogue 91 Adventurer 0 Explorer 0 Win Type - Total 0 Types 0/0/0/0/0/0/0/0/0/0 Lore% 63 Gallery% 48 Achievement% 30 Wizard Run 0 Options --------- Layout 1 ASCII 0 Keyboard 0 Movement Mouse Keybinds 0 Fullscreen 1 Font 24/Smallcaps Map View 50x35 Zoom Use 0% Tactical HUD 1 Map Filters NONE Filters NONE Steam 1 RUN: 3d7725c4-ae1b-4235-8820-8931e875c22b